bitfinex/quotes_SOLUSD_20250602
["timestamp","ask_amount","ask_price","bid_price","bid_amount"]
[1748874411683,39.90021982,153.92,153.87,61.04999411]
[1748874412392,38.30351982,153.91,153.87,22.74647429]
[1748874412720,1.5967,153.92,153.87,6.49899265]
[1748874412721,38.30351982,153.89,153.87,6.49899265]
[1748874412871,1.5967,153.92,153.87,6.49899265]
[1748874412872,38.30351982,153.88,153.87,6.49899265]
[1748874413214,38.30351982,153.88,153.85,6.4998375]
[1748874413409,38.30351982,153.87,153.84,6.50026001]
[1748874413900,38.30351982,153.86,153.85,0.5]
[1748874414690,38.30351982,153.87,153.85,0.5]
[1748874415613,1.5967,153.92,153.86,6.49941505]
[1748874415905,38.30351982,153.87,153.86,6.49941505]
[1748874416915,38.30351982,153.87,153.85,6.99970318]
[1748874417143,6.49829115,153.89,153.85,0.5]
[1748874417304,38.30351982,153.86,153.85,6.9998375]
[1748874417623,38.30351982,153.86,153.85,0.5]
[1748874417980,38.30351982,153.86,153.85,6.9998375]
[1748874418418,1.5967,153.92,153.85,6.9998375]
[1748874418588,38.30351982,153.86,153.85,6.9998375]
[1748874418789,38.30351982,153.86,153.85,0.5]
[1748874419828,6.49817257,153.89,153.85,0.5]
[1748874420012,38.30351982,153.9,153.85,0.5]
[1748874420214,38.30351982,153.86,153.85,0.5]
[1748874420411,38.30351982,153.9,153.85,0.5]
[1748874420601,38.30351982,153.86,153.85,0.5]
[1748874420920,1.5967,153.92,153.85,6.9998238]
[1748874421222,38.30351982,153.9,153.86,38.30351982]
[1748874421413,38.30351982,153.89,153.85,23.24941756]
[1748874421617,38.30351982,153.88,153.85,23.24941756]
[1748874421814,38.30351982,153.88,153.85,6.9998238]
[1748874422006,1.5967,153.92,153.85,6.9998238]
[1748874422196,38.30351982,153.89,153.85,61.55293738]
[1748874422801,38.30351982,153.89,153.85,23.24941756]
[1748874423000,1.5967,153.92,153.85,23.24941756]
[1748874423211,38.30351982,153.89,153.85,23.24941756]
[1748874423633,1.5967,153.92,153.85,61.55293738]
[1748874423827,38.30351982,153.9,153.86,38.30351982]
[1748874424026,38.30351982,153.91,153.85,23.24941756]
[1748874424223,38.30351982,153.89,153.85,61.55293738]
[1748874424525,38.30351982,153.88,153.85,23.24941756]
[1748874424827,38.30351982,153.86,153.85,6.9998238]
[1748874425207,38.30351982,153.86,153.85,0.5]
[1748874425713,6.49819327,153.89,153.85,0.5]
[1748874425929,38.30351982,153.86,153.85,0.5]
[1748874426232,38.30351982,153.86,153.82,6.50100133]
[1748874426406,6.3428,153.87,153.78,16.25619722]
[1748874426407,38.30351982,153.83,153.78,16.25619722]
[1748874426609,1.5876,153.85,153.78,16.25619722]
[1748874426822,38.30351982,153.8,153.78,16.25619722]
[1748874427736,38.30351982,153.81,153.78,16.25619722]
[1748874428032,38.30351982,153.8,153.78,16.25619722]
[1748874428835,38.30351982,153.81,153.78,16.25619722]
[1748874429051,1.5876,153.85,153.78,61.06251324]
[1748874429338,38.30351982,153.83,153.78,61.06251324]
[1748874429629,38.30351982,153.82,153.78,22.75899342]
[1748874430010,1.5876,153.85,153.78,22.75899342]
[1748874430011,38.30351982,153.81,153.78,22.75899342]
[1748874430606,38.30351982,153.83,153.79,38.30351982]
[1748874431041,38.30351982,153.85,153.8,61.06034686]
[1748874431234,1.584,153.89,153.81,38.30351982]
[1748874431473,38.30351982,153.85,153.8,61.06034686]
[1748874431766,38.30351982,153.84,153.8,22.75682704]
[1748874432243,38.30351982,153.84,153.81,0.5]
[1748874432625,38.30351982,153.82,153.81,0.5]
[1748874432847,38.30351982,153.83,153.81,0.5]
[1748874433056,38.30351982,153.83,153.82,6.50110518]
[1748874433355,38.30351982,153.84,153.82,6.50110518]
[1748874433576,6.4046,153.91,153.82,71.71386814]
[1748874433854,38.30351982,153.89,153.85,38.30351982]
[1748874434223,38.30351982,153.89,153.84,38.30351982]
[1748874435334,38.30351982,153.89,153.85,22.74943126]
[1748874435649,38.30351982,153.88,153.85,22.74943126]
[1748874436432,1.5975,153.93,153.86,38.30351982]
[1748874436643,38.30351982,153.91,153.86,38.30351982]
[1748874437246,38.30351982,153.91,153.85,16.24959376]
[1748874437563,1.5975,153.93,153.85,16.24959376]
[1748874437730,1.5975,153.93,153.86,38.30351982]
[1748874437924,38.30351982,153.91,153.86,38.30351982]
[1748874438336,1.5975,153.93,153.85,54.55311358]
[1748874438545,38.30351982,153.91,153.86,38.30351982]
[1748874438732,38.30351982,153.92,153.87,38.30351982]
[1748874438968,1.5975,153.93,153.86,38.30351982]
[1748874438969,38.30351982,153.91,153.86,38.30351982]
[1748874439394,38.30351982,153.91,153.87,22.74647429]
[1748874440188,1.5975,153.93,153.88,38.30351982]
[1748874440472,38.30351982,153.92,153.88,38.30351982]
[1748874440761,38.30351982,153.91,153.87,61.04999411]
[1748874441543,38.30351982,153.91,153.87,22.74647429]
[1748874442463,1.5975,153.93,153.87,6.49899265]
[1748874442749,38.30351982,153.88,153.87,6.49899265]
[1748874442983,38.30351982,153.88,153.83,6.50068257]
[1748874443198,38.30351982,153.84,153.83,6.50068257]
[1748874443352,38.30351982,153.85,153.83,6.50068257]
[1748874443548,48.56,153.92,153.83,6.50068257]
[1748874443549,38.30351982,153.87,153.83,6.50068257]
[1748874444365,38.30351982,153.86,153.83,6.50068257]
[1748874444546,38.30351982,153.86,153.83,22.75238899]
[1748874446267,38.30351982,153.85,153.83,22.75238899]
[1748874446788,38.30351982,153.86,153.83,22.75238899]
[1748874446987,55.05718322,153.92,153.83,22.75238899]
[1748874447156,38.30351982,153.86,153.83,22.75238899]
[1748874449153,6.49731167,153.91,153.83,6.50068257]
[1748874449476,38.30351982,153.85,153.83,6.50068257]
[1748874449869,38.30351982,153.84,153.8,6.50195058]
[1748874450273,38.30351982,153.84,153.8,22.75682704]
[1748874450481,38.30351982,153.86,153.81,38.30351982]
[1748874450780,38.30351982,153.9,153.8,22.75682704]
[1748874450781,38.30351982,153.84,153.8,22.75682704]
[1748874451076,6.5075,153.87,153.8,61.06034686]
[1748874451259,1.6107,153.89,153.8,22.75682704]
[1748874451454,38.30351982,153.86,153.81,38.30351982]
[1748874452481,38.30351982,153.84,153.82,6.50110518]
[1748874452703,1.6107,153.89,153.82,6.50110518]
[1748874452982,38.30351982,153.83,153.82,6.50110518]
[1748874453212,25.358126,153.83,153.79,15.76]
[1748874453428,25.358126,153.8,153.77,6.50321909]
[1748874453718,25.358126,153.78,153.76,7.55331403]
[1748874453858,25.358126,153.78,153.71,26.0]
[1748874453859,25.358126,153.77,153.75,6.50398695]
[1748874454268,1.581,153.82,153.73,6.5049112]
[1748874454269,6.50152785,153.81,153.73,6.5049112]
[1748874454500,25.358126,153.77,153.73,6.5049112]
[1748874454870,1.581,153.82,153.73,22.76718921]
[1748874455060,25.358126,153.77,153.73,48.12531521]
[1748874455265,25.358126,153.77,153.73,22.76718921]
[1748874455266,38.05687571,153.77,153.73,22.76718921]
[1748874455602,38.05687571,153.76,153.73,22.76718921]
[1748874455771,38.05687571,153.81,153.73,22.76718921]
[1748874455959,38.05687571,153.76,153.73,6.5049112]
[1748874456384,38.05687571,153.75,153.71,22.77015157]
[1748874456991,38.05687571,153.74,153.71,6.50575759]
[1748874457363,38.05687571,153.81,153.71,6.50575759]
[1748874457364,38.05687571,153.75,153.71,6.50575759]
[1748874457583,38.05687571,153.77,153.73,38.05687571]
[1748874457784,38.05687571,153.76,153.71,22.77015157]
[1748874457975,38.05687571,153.76,153.72,38.05687571]
[1748874458184,38.05687571,153.77,153.72,38.05687571]
[1748874458373,1.581,153.82,153.7,32.53089814]
[1748874458374,1.581,153.82,153.73,22.76718921]
[1748874458693,38.05687571,153.79,153.74,38.05687571]
[1748874458900,1.581,153.82,153.77,38.05687571]
[1748874459086,1.581,153.82,153.78,38.05687571]
[1748874459267,39.63787571,153.82,153.76,26.0]
[1748874459466,39.63787571,153.82,153.76,64.05687571]
[1748874459467,38.05687571,153.81,153.76,64.05687571]
[1748874459687,1.581,153.82,153.75,38.05687571]
[1748874459886,38.05687571,153.8,153.75,38.05687571]
[1748874460085,38.05687571,153.79,153.74,64.05687571]
[1748874460294,1.581,153.82,153.75,6.50406504]
[1748874460467,38.05687571,153.78,153.75,6.50406504]
[1748874460869,1.581,153.82,153.75,22.76422764]
[1748874461096,38.05687571,153.79,153.75,60.82110335]
[1748874461296,38.05687571,153.79,153.75,22.76422764]
[1748874462014,38.05687571,153.77,153.75,6.50406504]
[1748874462396,1.581,153.82,153.74,44.5613638]
[1748874462397,38.05687571,153.79,153.74,44.5613638]
[1748874462698,38.05687571,153.79,153.75,38.05687571]
[1748874462898,38.05687571,153.8,153.76,38.05687571]
[1748874463402,38.05687571,153.8,153.75,16.2601626]
[1748874463403,38.05687571,153.8,153.75,54.31703831]
[1748874463697,38.05687571,153.8,153.75,16.2601626]
[1748874463997,38.05687571,153.79,153.75,54.31703831]
[1748874464379,38.05687571,153.79,153.75,22.76422764]
[1748874464587,38.05687571,153.8,153.75,60.82110335]
[1748874465102,1.581,153.82,153.75,60.82110335]
[1748874465294,6.0928,153.87,153.77,38.05687571]
[1748874465486,6.0928,153.87,153.78,56.70652457]
[1748874465487,38.05687571,153.83,153.78,56.70652457]
[1748874465805,38.05687571,153.82,153.78,38.05687571]
[1748874465994,1.5679,153.86,153.77,38.05687571]
[1748874466177,38.05687571,153.82,153.77,38.05687571]
[1748874466379,1.5679,153.86,153.78,60.81666241]
[1748874466601,38.05687571,153.82,153.78,60.81666241]
[1748874467113,38.05687571,153.82,153.78,22.7597867]
[1748874467276,38.05687571,153.82,153.78,60.81666241]
[1748874467471,38.05687571,153.82,153.78,22.7597867]
[1748874467677,1.5679,153.86,153.78,60.81666241]
[1748874467903,38.05687571,153.82,153.78,60.81666241]
[1748874468410,38.05687571,153.81,153.78,22.7597867]
[1748874468702,38.05687571,153.82,153.78,22.7597867]
[1748874471106,38.05687571,153.79,153.78,6.5027962]
[1748874471995,38.05687571,153.79,153.76,6.50364203]
[1748874472197,38.05687571,153.77,153.76,6.50364203]
[1748874472725,38.05687571,153.77,153.73,22.76618015]
[1748874472876,38.05687571,153.81,153.73,22.76618015]
[1748874473078,38.05687571,153.77,153.73,22.76618015]
[1748874473877,47.32,153.84,153.73,22.76618015]
[1748874473878,9.51818815,153.9,153.75,26.0]
[1748874474101,38.05687571,153.87,153.8,6.5766]
[1748874474301,38.05687571,153.87,153.83,18.64964886]
[1748874474609,1.5961,153.93,153.84,6.50026001]
[1748874474610,38.05687571,153.86,153.84,6.50026001]
[1748874474781,38.05687571,153.86,153.83,34.90089744]
[1748874474782,38.05687571,153.85,153.81,53.66152785]
[1748874474986,38.05687571,153.9,153.81,6.50152785]
[1748874474987,38.05687571,153.83,153.81,6.50152785]
[1748874475497,4.94661281,153.91,153.82,18.933972]
[1748874475697,1.5961,153.93,153.84,38.05687571]
[1748874475900,38.05687571,153.89,153.84,38.05687571]
[1748874476322,38.05687571,153.9,153.84,38.05687571]
[1748874476607,38.05687571,153.9,153.85,22.74943126]
[1748874476802,38.05687571,153.9,153.85,60.80630697]
[1748874478381,38.05687571,153.91,153.86,38.05687571]
[1748874478902,38.05687571,153.91,153.87,22.74647429]
[1748874479216,38.05687571,153.88,153.87,6.49899265]
[1748874479995,38.05687571,153.89,153.87,6.49899265]
[1748874480194,38.05687571,153.88,153.85,6.4998375]
[1748874480399,38.05687571,153.87,153.85,6.4998375]
[1748874480608,1.5961,153.93,153.85,22.74943126]
[1748874480800,38.05687571,153.9,153.85,60.80630697]
[1748874480996,1.5961,153.93,153.85,60.80630697]
[1748874481200,38.05687571,153.9,153.85,60.80630697]
[1748874481997,38.05687571,153.9,153.86,38.05687571]
[1748874482327,1.5961,153.93,153.87,79.45299886]
[1748874482517,38.05687571,153.92,153.87,79.45299886]
[1748874482819,1.5961,153.93,153.87,22.74647429]
[1748874483035,38.05687571,153.9,153.87,6.49899265]
[1748874483595,38.05687571,153.91,153.87,6.49899265]
[1748874483821,1.5961,153.93,153.87,44.55586836]
[1748874484117,38.05687571,153.92,153.87,60.80335]
[1748874484627,1.5961,153.93,153.87,60.80335]
[1748874484628,38.05687571,153.91,153.87,60.80335]
[1748874484806,38.05687571,153.91,153.87,22.74647429]
[1748874485305,38.05687571,153.91,153.87,60.80335]
[1748874485507,1.5961,153.93,153.87,60.80335]
[1748874485740,1.5961,153.93,153.89,38.05687571]
[1748874486309,1.5961,153.93,153.9,6.49772579]
[1748874486691,39.65297571,153.93,153.9,6.49772579]
[1748874487134,1.5393,153.97,153.92,38.05687571]
[1748874487413,1.5393,153.97,153.93,38.05687571]
[1748874488588,1.5393,153.97,153.94,6.49603741]
[1748874489009,38.05687571,153.95,153.89,72.95095907]
[1748874489201,38.05687571,153.94,153.9,91.0546015]
[1748874489415,38.05687571,153.95,153.9,91.0546015]
[1748874489910,38.05687571,153.95,153.91,38.05687571]
[1748874490122,38.05687571,153.96,153.92,38.05687571]
[1748874490291,39.59617571,153.97,153.92,38.05687571]
[1748874490505,38.05687571,153.96,153.92,38.05687571]
[1748874490819,38.05687571,153.94,153.9,100.80119019]
[1748874491036,1.5393,153.97,153.91,22.74056265]
[1748874491212,38.05687571,153.96,153.91,60.79743836]
[1748874491393,38.05687571,153.95,153.91,22.74056265]
[1748874491596,38.05687571,153.93,153.91,6.49730361]
[1748874491795,38.05687571,153.94,153.91,6.49730361]
[1748874492407,38.05687571,153.96,153.91,44.55417932]
[1748874492611,38.05687571,153.96,153.93,6.49645942]
[1748874493198,1.5393,153.97,153.88,16.24549035]
[1748874493510,38.05687571,153.95,153.9,38.05687571]
[1748874493709,38.05687571,153.94,153.9,38.05687571]
[1748874494221,38.05687571,153.94,153.89,38.05687571]
[1748874494625,38.05687571,153.9,153.88,6.49857031]
[1748874494932,6.49636759,153.94,153.88,6.49857031]
[1748874494933,38.05687571,153.89,153.88,6.49857031]
[1748874495258,38.05687571,153.91,153.88,6.49857031]
[1748874495651,38.05687571,153.9,153.88,6.49857031]
[1748874495817,38.05687571,153.89,153.86,6.49941505]
[1748874497729,38.05687571,153.88,153.86,6.49941505]
[1748874498237,38.05687571,153.88,153.84,14.72]
[1748874498238,38.05687571,153.87,153.84,14.72]
[1748874498424,38.05687571,153.86,153.84,14.72]
[1748874498610,38.05687571,153.87,153.83,38.05687571]
[1748874498808,1.5918,153.9,153.84,44.55695645]
[1748874499019,38.05687571,153.89,153.84,44.55695645]
[1748874499516,1.5918,153.9,153.84,60.80760647]
[1748874499719,38.05687571,153.89,153.84,60.80760647]
[1748874500511,38.05687571,153.88,153.84,6.50008074]
[1748874500713,38.05687571,153.88,153.84,44.55695645]
[1748874501938,38.05687571,153.88,153.84,6.50008074]
[1748874502107,38.05687571,153.88,153.84,44.55695645]
[1748874502313,38.05687571,153.89,153.84,60.80760647]
[1748874502925,12.84824095,153.93,153.86,38.05687571]
[1748874502926,6.3516,153.93,153.86,38.05687571]
[1748874503124,6.3516,153.93,153.88,38.05687571]
[1748874503330,1.5918,153.94,153.87,38.05687571]
[1748874503331,38.05687571,153.92,153.87,38.05687571]
[1748874503515,1.5918,153.94,153.87,38.05687571]
[1748874503516,38.05687571,153.91,153.87,38.05687571]
[1748874503720,38.05687571,153.91,153.86,45.98]
[1748874503913,38.05687571,153.9,153.86,45.98]
[1748874504107,8.08784374,153.94,153.86,84.03687571]
[1748874504108,38.05687571,153.91,153.86,84.03687571]
[1748874505010,38.05687571,153.91,153.87,6.49899265]
[1748874505211,38.05687571,153.9,153.87,6.49899265]
[1748874505707,8.08796625,153.94,153.87,6.49899265]
[1748874505928,38.05687571,153.89,153.86,6.4992655]
[1748874506923,38.05687571,153.89,153.85,6.4998375]
[1748874507610,38.05687571,153.88,153.85,6.4998375]
[1748874508523,38.05687571,153.87,153.85,6.4998375]
[1748874508936,1.5918,153.94,153.85,60.80630697]
[1748874508937,8.08795107,153.94,153.85,60.80630697]
[1748874509164,8.08795107,153.94,153.85,22.74943126]
[1748874509336,25.33168613,153.89,153.85,22.74943126]
[1748874509539,25.33168613,153.89,153.85,48.08111739]
[1748874510527,1.5918,153.94,153.85,6.4998375]
[1748874510528,25.33168613,153.88,153.85,6.4998375]
[1748874511011,25.33168613,153.92,153.85,6.4998375]
[1748874511012,25.33168613,153.87,153.85,6.4998375]
[1748874511430,25.33168613,153.92,153.85,6.4998375]
[1748874511746,25.33168613,153.92,153.83,67.58329177]
[1748874511747,25.33168613,153.88,153.84,6.50026001]
[1748874511931,25.33168613,153.9,153.86,25.33168613]
[1748874512443,1.5918,153.94,153.86,25.33168613]
[1748874512647,25.33168613,153.92,153.87,25.33168613]
[1748874512820,25.33168613,153.91,153.86,25.33168613]
[1748874513443,8.08789591,153.94,153.85,25.33168613]
[1748874513647,25.33168613,153.91,153.86,25.33168613]
[1748874513849,25.33168613,153.91,153.87,6.49899265]
[1748874514428,1.5918,153.94,153.87,6.49899265]
[1748874514740,25.33168613,153.91,153.87,6.49899265]
[1748874515340,25.33168613,153.9,153.87,6.49899265]
[1748874515528,25.33168613,153.9,153.86,22.74779243]
[1748874516324,25.33168613,153.91,153.86,48.07947856]
[1748874516556,25.33168613,153.91,153.79,16.25593341]
[1748874516557,1.6387,153.88,153.79,16.25593341]
[1748874516846,25.33168613,153.83,153.78,43.98133499]
[1748874517041,1.6387,153.88,153.78,43.98133499]
[1748874517042,1.6387,153.88,153.78,44.64964886]
[1748874517267,38.02482785,153.84,153.79,38.02482785]
[1748874517475,38.02482785,153.82,153.78,38.02482785]
[1748874517653,6.49959577,153.86,153.79,6.50237336]
[1748874517952,38.02482785,153.83,153.79,6.50237336]
[1748874519459,1.6387,153.88,153.79,44.52720121]
[1748874519653,38.02482785,153.84,153.79,60.78313462]
[1748874520229,38.02482785,153.82,153.79,6.50237336]
[1748874520472,38.02482785,153.84,153.8,38.02482785]
[1748874520663,38.02482785,153.84,153.79,60.78313462]
[1748874520846,38.02482785,153.83,153.79,60.78313462]
[1748874521463,38.02482785,153.84,153.79,60.78313462]
[1748874522061,8.13742847,153.88,153.79,60.78313462]
[1748874522234,38.02482785,153.84,153.79,60.78313462]
[1748874522439,38.02482785,153.85,153.8,38.02482785]
[1748874522655,8.13729562,153.88,153.79,60.78313462]
[1748874522854,38.02482785,153.84,153.79,60.78313462]
[1748874523053,38.02482785,153.83,153.79,60.78313462]
[1748874523262,1.6387,153.88,153.79,60.78313462]
[1748874523464,38.02482785,153.84,153.8,38.02482785]
[1748874523783,38.02482785,153.84,153.8,38.52482785]
[1748874523949,38.02482785,153.84,153.8,0.5]
[1748874524263,38.02482785,153.83,153.8,0.5]
[1748874524763,38.02482785,153.82,153.79,22.75830677]
[1748874524933,38.02482785,153.82,153.79,6.50237336]
[1748874525125,8.13735623,153.88,153.79,6.50237336]
[1748874525360,8.13735623,153.88,153.77,71.86]
[1748874525361,38.02482785,153.82,153.78,6.5027962]
[1748874526232,38.02482785,153.79,153.78,6.5027962]
[1748874526753,38.02482785,153.79,153.73,16.26178041]
[1748874526937,1.645,153.81,153.73,16.26178041]
[1748874527146,38.02482785,153.77,153.73,16.26178041]
[1748874527363,38.02482785,153.76,153.73,22.76669161]
[1748874527832,38.02482785,153.76,153.73,6.5049112]
[1748874528037,38.02482785,153.74,153.73,6.5049112]
[1748874529082,38.02482785,153.74,153.65,13.96]
[1748874529289,6.159,153.79,153.64,16.27087979]
[1748874529290,1.5123,153.73,153.64,16.27087979]
[1748874529684,1.5123,153.73,153.65,38.02482785]
[1748874529872,38.02482785,153.69,153.64,16.27087979]
[1748874530165,38.02482785,153.69,153.64,54.29570764]
[1748874530383,38.02482785,153.69,153.64,16.27087979]
[1748874530564,38.02482785,153.68,153.64,16.27087979]
[1748874530862,1.5123,153.73,153.64,54.29570764]
[1748874531047,1.5123,153.73,153.67,38.02482785]
[1748874531261,1.5123,153.73,153.65,0.14216157]
[1748874531262,38.02482785,153.72,153.65,0.14216157]
[1748874531474,1.5123,153.73,153.65,0.14216157]
[1748874531475,38.02482785,153.71,153.66,56.67447671]
[1748874532066,38.02482785,153.7,153.66,56.67447671]
[1748874532374,38.02482785,153.69,153.65,38.02482785]
[1748874532554,38.02482785,153.69,153.64,109.40442932]
[1748874532767,38.02482785,153.68,153.64,60.80442932]
[1748874533162,38.02482785,153.69,153.64,60.80442932]
[1748874533354,1.5123,153.73,153.66,38.02482785]
[1748874533542,38.02482785,153.7,153.66,38.02482785]
[1748874533739,38.02482785,153.7,153.65,38.02482785]
[1748874534048,1.5123,153.73,153.66,18.64964886]
[1748874534257,1.5123,153.73,153.66,56.67447671]
[1748874534453,1.5123,153.73,153.68,38.02482785]
[1748874534656,38.02482785,153.72,153.68,38.02482785]
[1748874534853,38.02482785,153.71,153.67,38.02482785]
[1748874535064,38.02482785,153.71,153.68,6.50702758]
[1748874535272,38.02482785,153.72,153.68,6.50702758]
[1748874535779,38.02482785,153.71,153.68,6.50702758]
[1748874536342,38.02482785,153.7,153.68,6.50702758]
[1748874537170,38.02482785,153.7,153.67,6.50745103]
[1748874537462,1.5123,153.73,153.67,22.7760786]
[1748874537640,38.02482785,153.71,153.67,22.7760786]
[1748874537840,38.02482785,153.7,153.67,22.7760786]
[1748874538043,38.02482785,153.69,153.67,6.50745103]
[1748874538950,38.02482785,153.7,153.67,6.50745103]
[1748874539169,38.02482785,153.7,153.66,22.77744418]
[1748874539858,38.02482785,153.68,153.66,22.77744418]
[1748874540039,38.02482785,153.69,153.66,22.77744418]
[1748874540243,1.5123,153.73,153.66,22.77744418]
[1748874540441,38.02482785,153.7,153.66,22.77744418]
[1748874541290,38.02482785,153.7,153.66,60.80227203]
[1748874541439,38.02482785,153.71,153.66,60.80227203]
[1748874541643,1.5123,153.73,153.67,38.02482785]
[1748874541864,38.02482785,153.71,153.66,22.77744418]
[1748874542061,38.02482785,153.71,153.66,60.80227203]
[1748874542276,38.02482785,153.7,153.66,60.80227203]
[1748874542456,38.02482785,153.7,153.66,22.77744418]
[1748874542654,38.02482785,153.69,153.66,22.77744418]
[1748874543242,25.3957072,153.7,153.66,48.17315138]
[1748874543494,1.5123,153.73,153.68,25.3957072]
[1748874543667,26.9080072,153.73,153.68,25.3957072]
[1748874543977,25.3957072,153.75,153.7,25.3957072]
[1748874544185,1.5041,153.78,153.71,25.3957072]
[1748874544186,25.3957072,153.76,153.71,25.3957072]
[1748874544503,25.3957072,153.76,153.72,25.3957072]
[1748874544700,25.3957072,153.76,153.71,25.3957072]
[1748874545298,1.5041,153.78,153.72,48.1643775]
[1748874545299,25.3957072,153.77,153.72,48.1643775]
[1748874546005,6.159,153.79,153.72,48.1643775]
[1748874546006,25.3957072,153.8,153.75,25.3957072]
[1748874546166,25.3957072,153.79,153.75,25.3957072]
[1748874546371,25.3957072,153.78,153.74,25.3957072]
[1748874546703,1.6522,153.82,153.75,25.3957072]
[1748874546861,25.3957072,153.78,153.74,25.3957072]
[1748874547297,38.0552414,153.77,153.74,6.50448809]
[1748874547479,38.0552414,153.76,153.74,6.50448809]
[1748874548062,38.0552414,153.77,153.74,6.50448809]
[1748874548468,1.6522,153.82,153.73,6.5049112]
[1748874548660,1.6522,153.82,153.73,44.5601526]
[1748874548661,38.0552414,153.77,153.73,44.5601526]
[1748874549884,38.0552414,153.77,153.73,60.82243061]
[1748874551275,38.0552414,153.78,153.73,60.82243061]
[1748874551474,38.0552414,153.77,153.73,60.82243061]
[1748874551685,38.0552414,153.78,153.74,38.0552414]
[1748874551889,38.0552414,153.78,153.73,22.76718921]
[1748874552085,38.0552414,153.78,153.73,60.82243061]
[1748874552270,38.0552414,153.78,153.74,38.0552414]
[1748874552474,38.0552414,153.79,153.74,38.0552414]
[1748874552681,38.0552414,153.81,153.76,38.0552414]
[1748874553101,38.0552414,153.81,153.77,6.50321909]
[1748874553590,54.11843014,153.89,153.8,38.0552414]
[1748874553810,38.0552414,153.83,153.79,38.0552414]
[1748874554179,38.0552414,153.83,153.77,70.38126682]
[1748874554573,38.0552414,153.82,153.78,38.0552414]
[1748874555004,38.0552414,153.82,153.77,70.38126682]
[1748874555226,38.0552414,153.8,153.77,22.76126682]
[1748874555394,38.0552414,153.78,153.77,6.50321909]
[1748874556581,38.0552414,153.79,153.76,6.50364203]
[1748874557695,38.0552414,153.78,153.76,6.50364203]
[1748874558718,38.0552414,153.77,153.7,15.44]
[1748874558928,44.5849414,153.81,153.71,56.70489026]
[1748874559113,38.0552414,153.76,153.72,38.0552414]
[1748874559686,38.0552414,153.76,153.73,6.5049112]
[1748874560084,38.0552414,153.77,153.73,60.82243061]
[1748874560299,38.0552414,153.78,153.73,60.82243061]
[1748874560500,38.0552414,153.78,153.73,22.76718921]
[1748874560704,38.0552414,153.78,153.73,60.82243061]
[1748874561395,38.0552414,153.77,153.73,22.76718921]
[1748874561586,51.08655815,153.81,153.73,16.26227801]
[1748874561785,51.08655815,153.81,153.7,41.44]
[1748874561786,38.0552414,153.74,153.72,6.50533437]
[1748874562544,51.08655815,153.81,153.71,6.50558557]
[1748874562545,38.0552414,153.73,153.71,6.50558557]
[1748874562735,38.0552414,153.72,153.66,6.50787452]
[1748874563023,6.5975,153.74,153.66,6.50787452]
[1748874563226,38.0552414,153.69,153.66,6.50787452]
[1748874565413,38.0552414,153.68,153.66,6.50787452]
[1748874565613,38.0552414,153.69,153.66,6.50787452]
[1748874566418,38.0552414,153.7,153.66,60.83280224]
[1748874566711,38.0552414,153.7,153.66,22.77756084]
[1748874567213,38.0552414,153.69,153.66,22.77756084]
[1748874567407,53.7175,153.74,153.66,22.77756084]
[1748874567720,60.22199237,153.74,153.66,22.77756084]
[1748874567913,38.0552414,153.69,153.66,22.77756084]
[1748874568517,38.0552414,153.67,153.66,6.50787452]
[1748874568822,38.0552414,153.67,153.64,6.50872168]
[1748874569027,13.24417245,153.74,153.64,22.78052589]
[1748874569189,38.0552414,153.68,153.64,60.83576729]
[1748874569824,6.5975,153.74,153.65,38.0552414]
[1748874570019,38.0552414,153.69,153.65,38.0552414]
[1748874570527,38.0552414,153.69,153.64,60.83576729]
[1748874571404,13.10200142,153.74,153.65,38.0552414]
[1748874571608,38.0552414,153.69,153.66,6.50787452]
[1748874572221,38.0552414,153.69,153.66,22.77756084]
[1748874573418,25.39990096,153.68,153.66,6.50787452]
[1748874573652,25.39990096,153.67,153.65,6.50829808]
[1748874573819,25.39990096,153.68,153.65,6.50829808]
[1748874575118,25.39990096,153.68,153.64,6.50872168]
[1748874575709,25.39990096,153.68,153.64,22.78052589]
[1748874576514,25.39990096,153.65,153.61,6.50999283]
[1748874576715,25.39990096,153.63,153.61,6.50999283]
[1748874576899,25.39990096,153.64,153.61,6.50999283]
[1748874577224,25.39990096,153.64,153.6,22.78613118]
[1748874577424,25.39990096,153.64,153.6,48.18603214]
[1748874577732,1.6566,153.67,153.62,25.39990096]
[1748874577909,25.39990096,153.66,153.62,25.39990096]
[1748874578109,25.39990096,153.65,153.6,48.18603214]
[1748874578303,25.39990096,153.64,153.6,22.78613118]
[1748874578812,25.39990096,153.63,153.6,22.78613118]
[1748874580205,25.39990096,153.62,153.6,6.51041666]
[1748874581095,13.05862107,153.66,153.6,6.51041666]
[1748874581302,25.39990096,153.62,153.58,48.18932665]
[1748874581718,25.39990096,153.63,153.59,25.39990096]
[1748874582029,25.39990096,153.64,153.6,25.39990096]
[1748874582527,1.6566,153.67,153.61,25.39990096]
[1748874582729,25.39990096,153.66,153.62,25.39990096]
[1748874583327,25.39990096,153.65,153.62,6.50956906]